bitfinex/quotes_SOLUSD_20260113
["timestamp","ask_amount","ask_price","bid_price","bid_amount"]
[1768297894053,0.78049947,141.88,141.85,3.79139143]
[1768297894551,0.78049947,141.88,141.85,0.60570942]
[1768297894763,0.78049947,141.88,141.85,3.79139143]
[1768297895965,0.1,141.88,141.86,0.60570942]
[1768297896130,0.1,141.88,141.85,10.74098669]
[1768297897045,0.82342344,141.88,141.85,10.23527727]
[1768297897364,0.1,141.88,141.85,7.55530468]
[1768297897543,0.1,141.88,141.85,10.74098669]
[1768297897858,0.1,141.88,141.85,7.55530468]
[1768297898036,0.1,141.88,141.85,10.74098669]
[1768297899370,0.1,141.88,141.86,3.18568201]
[1768297899539,0.82342344,141.88,141.85,3.18568201]
[1768297900660,0.82342344,141.88,141.85,10.23534155]
[1768297901745,7.49315741,141.89,141.87,3.69139143]
[1768297901746,0.4452446,141.89,141.87,3.69139143]
[1768297901963,0.72342344,141.88,141.84,10.23571122]
[1768297902665,0.72342344,141.88,141.85,10.2353493]
[1768297903271,0.72342344,141.88,141.84,7.05006769]
[1768297903453,0.72342344,141.88,141.86,3.18568201]
[1768297904862,0.72342344,141.88,141.85,10.2352875]
[1768297905367,0.72342344,141.88,141.85,3.18568201]
[1768297906758,0.72342344,141.87,141.83,7.55620667]
[1768297907133,0.69342345,141.87,141.83,10.74188868]
[1768297908956,0.69342345,141.87,141.84,10.23581572]
[1768297909339,0.69342345,141.87,141.83,7.55626904]
[1768297909539,0.69342345,141.87,141.84,3.18568201]
[1768297909756,0.69342345,141.87,141.84,2.46068201]
[1768297909966,0.69342345,141.87,141.83,7.05055962]
[1768297910155,0.69342345,141.87,141.85,3.18568201]
[1768297910353,0.69342345,141.87,141.84,3.18568201]
[1768297910965,0.59342345,141.88,141.86,10.2348612]
[1768297911175,0.59342345,141.88,141.86,7.04917919]
[1768297911542,0.5442446,141.89,141.86,10.2348612]
[1768297911768,0.58847921,141.88,141.86,10.2348612]
[1768297911973,0.58847921,141.88,141.87,3.08073777]
[1768297912273,0.58847921,141.88,141.86,10.2348612]
[1768297912848,0.55847922,141.88,141.86,10.2348612]
[1768297914165,0.55847922,141.88,141.84,21.52171648]
[1768297914376,0.55847922,141.88,141.87,3.18568201]
[1768297915474,1e-08,141.89,141.87,3.18568201]
[1768297915659,0.199,141.9,141.88,3.18568201]
[1768297915961,0.199,141.9,141.89,3.18568201]
[1768297916157,0.1,141.91,141.89,3.18568201]
[1768297917039,0.1,141.91,141.89,3.89712021]
[1768297917750,7.14585785,141.93,141.9,3.18568201]
[1768297918073,0.1,141.93,141.9,3.89712021]
[1768297918246,7.5026449,141.93,141.89,3.89712021]
[1768297918446,10.68832691,141.93,141.89,0.7114382]
[1768297920275,7.14577048,141.93,141.89,3.18568201]
[1768297921051,7.14577048,141.93,141.88,3.18568201]
[1768297921355,10.33145249,141.93,141.88,3.18568201]
[1768297922056,7.14577048,141.93,141.89,3.18568201]
[1768297923388,7.14577048,141.93,141.87,7.759977]
[1768297923674,3.18568201,141.89,141.85,0.7114382]
[1768297923879,3.18568201,141.88,141.85,0.7114382]
[1768297924471,3.18568201,141.87,141.81,0.7114382]
[1768297924660,3.18568201,141.86,141.82,0.7114382]
[1768297925383,17.62070589,141.88,141.83,0.70693457]
[1768297925598,3.18568201,141.87,141.83,0.70693457]
[1768297926583,10.23444695,141.87,141.83,0.70693457]
[1768297927388,7.04771301,141.89,141.84,0.70693457]
[1768297927683,3.18568201,141.88,141.84,0.70693457]
[1768297929180,10.23408082,141.88,141.84,0.70693457]
[1768297929568,3.18568201,141.87,141.84,0.70693457]
[1768297929994,3.18568201,141.87,141.83,0.70693457]
[1768297930167,10.23408082,141.88,141.83,3.89261658]
[1768297930561,3.18568201,141.88,141.84,0.70693457]
[1768297930783,0.1,141.93,141.88,0.70693457]
[1768297930966,0.1,141.93,141.91,0.70693457]
[1768297931586,0.1,141.93,141.91,2.74157014]
[1768297931791,0.1,141.93,141.91,9.78794519]
[1768297931981,0.1,141.93,141.92,0.70693457]
[1768297932990,0.1,141.94,141.92,0.70693457]
[1768297935282,9.17857474,141.97,141.93,0.70619239]
[1768297935484,9.37657474,141.97,141.93,0.70619239]
[1768297935658,9.37657474,141.97,141.91,7.04656419]
[1768297935659,0.10098,141.96,141.91,2.74082796]
[1768297935866,2.23166537,141.95,141.91,0.70619239]
[1768297936482,0.1970298,141.95,141.91,0.70619239]
[1768297936697,2.23166537,141.95,141.91,0.70619239]
[1768297936863,0.1970298,141.95,141.91,7.75271882]
[1768297937179,0.1970298,141.95,141.91,9.78735439]
[1768297937881,0.1,141.97,141.92,0.70619239]
[1768297938060,0.199,141.97,141.93,2.74082796]
[1768297938263,0.1,141.97,141.94,2.74082796]
[1768297939502,0.1,141.97,141.95,0.70619239]
[1768297942600,0.1,141.98,141.96,0.70619239]
[1768297943473,7.14342278,141.98,141.96,0.70619239]
[1768297943996,0.19996039,141.97,141.92,0.70619239]
[1768297944181,2.03463557,141.95,141.92,0.70619239]
[1768297944498,14.89463557,141.96,141.92,0.70619239]
[1768297944886,12.86,141.96,141.93,0.70619239]
[1768297945682,9.07860966,141.97,141.93,0.70619239]
[1768297945883,12.96,141.98,141.95,0.70619239]
[1768297946079,14.99463557,141.98,141.95,0.70619239]
[1768297946773,22.70795855,141.99,141.97,0.70619239]
[1768297946774,15.66475975,141.99,141.97,0.70619239]
[1768297947388,22.70757878,141.99,141.97,0.64619239]
[1768297947592,24.74221435,141.99,141.97,0.64619239]
[1768297947773,24.74221435,141.99,141.97,0.58619239]
[1768297947987,24.74221435,141.99,141.97,0.52619239]
[1768297948407,22.70757878,141.99,141.97,0.52619239]
[1768297948593,2.03463557,141.98,141.93,9.08028343]
[1768297949288,2.03463557,141.98,141.93,7.04564786]
[1768297949478,2.03463557,141.97,141.89,37.15879855]
[1768297949678,2.03463557,141.97,141.91,2.03463557]
[1768297950098,2.03463557,141.97,141.92,0.70619239]
[1768297950603,2.03463557,141.96,141.92,0.70619239]
[1768297950791,2.03463557,141.96,141.93,0.70619239]
[1768297951403,2.03463557,141.94,141.9,0.70619239]
[1768297951607,2.03463557,141.93,141.9,0.70619239]
[1768297952978,0.6415442,141.92,141.88,7.75427713]
[1768297954313,2.03463557,141.89,141.85,0.70619239]
[1768297954605,24.66180342,141.92,141.87,0.70225767]
[1768297954903,22.64147556,141.92,141.87,0.70225767]
[1768297955107,2.03463557,141.91,141.87,0.70225767]
[1768297956411,9.08172059,141.91,141.87,0.70225767]
[1768297957198,15.59627329,141.93,141.88,0.70225767]
[1768297957600,2.73627329,141.93,141.88,0.70225767]
[1768297957797,15.59627329,141.93,141.88,0.70225767]
[1768297958591,22.64208913,141.93,141.88,0.70225767]
[1768297960311,2.03463557,141.92,141.88,0.70225767]
[1768297962226,9.08094945,141.92,141.88,0.70225767]
[1768297963809,7.04631388,141.92,141.88,0.70225767]
[1768297965424,9.67735828,141.94,141.89,0.70225767]
[1768297965727,22.53735828,141.94,141.89,0.70225767]
[1768297965937,20.50272271,141.94,141.9,0.70225767]
[1768297966099,22.53735828,141.94,141.9,0.70225767]
[1768297966299,2.03463557,141.92,141.89,0.70225767]
[1768297966501,2.63196422,141.9,141.85,0.70225767]
[1768297966721,2.03463557,141.89,141.86,0.70225767]
[1768297967314,9.67953611,141.9,141.86,0.70225767]
[1768297968030,2.03463557,141.89,141.86,0.70225767]
[1768297968204,2.7352302,141.89,141.86,0.70225767]
[1768297968410,0.70059463,141.89,141.85,7.7518262]
[1768297969636,9.08220746,141.9,141.86,0.70225767]
[1768297969806,9.78070239,141.96,141.9,0.70225767]
[1768297970014,7.74606682,141.96,141.92,0.70225767]
[1768297970212,9.78070239,141.96,141.92,0.70225767]
[1768297970614,7.74606682,141.96,141.92,2.73689324]
[1768297971021,0.70163772,141.96,141.92,2.73689324]
[1768297971410,7.74501905,141.98,141.94,0.70225767]
[1768297971621,20.60501905,141.98,141.94,2.73689324]
[1768297971817,7.04338133,141.98,141.94,0.70225767]
[1768297972022,9.0780169,141.98,141.94,0.70225767]
[1768297972229,7.04338133,141.98,141.94,2.73689324]
[1768297972536,38.30392697,141.99,141.94,2.73689324]
[1768297973306,9.78001492,141.97,141.92,0.70225767]
[1768297973533,0.70163772,141.96,141.92,2.73689324]
[1768297973734,15.59627329,141.96,141.92,0.70225767]
[1768297975726,22.64095117,141.96,141.92,0.70225767]
[1768297976235,20.6063156,141.96,141.92,2.73689324]
[1768297977534,0.70163772,141.95,141.92,2.03463557]
[1768297980230,0.70163772,141.95,141.91,7.74886146]
[1768297980538,13.56163772,141.97,141.94,2.03463557]
[1768297980837,13.56163772,141.97,141.93,2.73689324]
[1768297981143,0.70163772,141.98,141.94,2.03463557]
[1768297982017,0.69462134,141.96,141.93,2.03463557]
[1768297982563,0.69462134,141.96,141.92,2.03463557]
[1768297983340,0.59462134,141.94,141.91,2.03463557]
[1768297984127,0.59462134,141.94,141.92,2.03463557]
[1768297984328,0.59462134,141.94,141.92,9.08065721]
[1768297984733,0.59462134,141.94,141.92,2.03463557]
[1768297985446,0.59462134,141.94,141.92,9.08081917]
[1768297986044,0.59462134,141.94,141.89,19.65367295]
[1768297986247,0.49462134,141.93,141.88,0.65335868]
[1768297986452,14.89463557,141.94,141.89,2.68799425]
[1768297986636,14.89463557,141.94,141.9,0.65335868]
[1768297986826,12.86,141.94,141.9,0.65335868]
[1768297987028,14.89463557,141.94,141.9,0.65335868]
[1768297987568,21.94008415,141.94,141.9,0.65335868]
[1768297987928,19.90544858,141.94,141.9,0.65335868]
[1768297988238,12.86,141.94,141.91,0.65335868]
[1768297989742,9.57416274,141.95,141.91,0.65335868]
[1768297991554,10.71873854,141.95,141.91,0.65335868]
[1768297992249,7.53952717,141.95,141.91,0.65335868]
[1768297992451,10.71873854,141.95,141.91,0.65335868]
[1768297992755,23.08362771,141.96,141.92,0.65335868]
[1768297992943,23.18262771,141.96,141.92,0.65335868]
[1768297993547,19.90441634,141.96,141.92,0.65335868]
[1768297993739,23.08362771,141.96,141.92,0.65335868]
[1768297994760,10.22399684,141.95,141.91,0.69845107]
[1768297995362,7.04478547,141.95,141.92,0.69845107]
[1768297997857,10.22399684,141.95,141.92,0.69845107]
[1768297998963,10.22399684,141.95,141.9,7.74550964]
[1768297999133,7.15203309,141.94,141.9,7.04705857]
[1768297999329,7.04527773,141.94,141.91,0.69845107]
[1768297999836,3.17921137,141.93,141.91,0.69845107]
[1768298000251,19.90527773,141.94,141.91,0.69845107]
[1768298000446,23.0844891,141.94,141.91,0.69845107]
[1768298001032,23.57515422,141.94,141.89,0.69845107]
[1768298002362,3.17921137,141.93,141.89,0.69845107]
[1768298004262,10.71515422,141.94,141.89,3.87766244]
[1768298004861,10.71515422,141.94,141.89,0.69845107]
[1768298005161,10.71515422,141.94,141.89,3.87766244]
[1768298006456,10.2244891,141.94,141.9,0.69845107]
[1768298006771,30.96708459,141.95,141.9,0.69845107]
[1768298006772,10.22525813,141.93,141.9,0.69845107]
[1768298014554,3.17921137,141.92,141.85,12.86]
[1768298014753,3.17921137,141.9,141.84,7.40022603]
[1768298014963,3.17921137,141.88,141.83,7.05048489]
[1768298015139,3.17921137,141.88,141.84,0.72011533]
[1768298015544,13.35066512,141.89,141.84,0.72011533]
[1768298015743,16.52987649,141.89,141.84,0.72011533]
[1768298016166,7.04820975,141.88,141.84,0.72011533]
[1768298016844,7.04820975,141.88,141.85,0.72011533]
[1768298017359,7.04820975,141.88,141.86,0.72011533]
[1768298017973,7.04771301,141.89,141.86,0.72011533]
[1768298018667,10.22692438,141.89,141.86,0.72011533]
[1768298019467,3.17921137,141.88,141.84,0.72011533]
[1768298020557,3.27821137,141.88,141.84,0.72011533]
[1768298020970,3.66987649,141.87,141.83,0.72011533]
[1768298021174,0.49066512,141.87,141.83,10.94998572]
[1768298021357,10.72236644,141.88,141.83,10.94998572]
[1768298021559,10.72236644,141.88,141.84,0.72011533]
[1768298024155,0.099,141.92,141.88,0.72011533]
[1768298024353,0.71313053,141.93,141.89,3.15400465]
[1768298025271,0.59559007,141.92,141.89,3.15400465]
[1768298025571,0.71313053,141.93,141.9,3.17921137]
[1768298025967,7.64101609,141.94,141.9,3.17921137]
[1768298026161,7.64101609,141.94,141.91,3.17921137]
[1768298026662,0.71195513,141.93,141.91,3.17921137]
[1768298027170,7.75855655,141.94,141.9,3.8993267]
[1768298027671,0.59559007,141.93,141.91,3.17921137]
[1768298027973,0.59559007,141.93,141.91,3.11921138]
[1768298028864,0.59559007,141.93,141.9,3.17921137]
[1768298029469,7.64137325,141.93,141.89,7.7677286]
[1768298029667,7.64137325,141.93,141.9,3.17921137]
[1768298031272,7.64137325,141.93,141.89,7.7677286]
[1768298031473,0.71195513,141.92,141.89,3.17921137]
[1768298031657,7.75826389,141.92,141.88,7.76813208]
[1768298031977,0.59675372,141.91,141.88,10.94753591]
[1768298032170,0.71313053,141.92,141.89,3.17921137]
[1768298032366,0.71313053,141.92,141.88,7.76832454]
[1768298032367,19.90583163,141.93,141.9,3.8993267]
[1768298032764,20.5014217,141.93,141.9,0.72011533]
[1768298033555,23.68063307,141.93,141.89,3.8993267]
[1768298033876,23.68063307,141.93,141.89,0.72011533]
[1768298034874,20.5014217,141.93,141.89,0.72011533]
[1768298035180,23.68063307,141.93,141.89,3.8993267]
[1768298035771,12.86,141.93,141.91,3.17921137]
[1768298036168,7.04542429,141.94,141.91,3.11921139]
[1768298036682,7.64101436,141.94,141.9,3.8993267]
[1768298036885,7.64101436,141.94,141.9,0.72011533]
[1768298037065,10.82022573,141.94,141.9,0.72011533]
[1768298037264,7.64101436,141.94,141.91,3.17921137]
[1768298037471,7.64101436,141.94,141.9,0.72011533]
[1768298037472,0.71195513,141.93,141.89,0.72011533]
[1768298037776,0.71195513,141.93,141.9,3.17921137]
[1768298037984,0.71195513,141.93,141.9,3.11921138]
[1768298038487,7.75787301,141.93,141.89,3.8993267]
[1768298039987,0.71080312,141.91,141.88,0.72011533]
[1768298040286,7.7589059,141.93,141.89,3.8993267]
[1768298040490,7.7589059,141.93,141.9,0.72011533]
[1768298041094,7.7589059,141.93,141.9,3.17921137]
[1768298041386,7.7589059,141.93,141.89,3.8993267]
[1768298041570,10.93811727,141.93,141.89,3.8993267]
[1768298041772,7.7589059,141.93,141.89,3.8993267]
[1768298041977,10.93811727,141.93,141.89,3.8993267]
[1768298043187,0.59559007,141.92,141.88,3.8993267]
[1768298043494,3.77480144,141.92,141.88,0.72011533]
[1768298043690,0.71195513,141.91,141.88,0.72011533]
[1768298043874,0.59789421,141.88,141.84,16.7593267]
[1768298044078,0.59789421,141.88,141.84,3.8993267]
[1768298044395,3.77710558,141.88,141.84,0.72011533]
[1768298045099,3.77822338,141.86,141.82,0.70367505]
[1768298045279,0.70856741,141.85,141.82,3.17921137]
[1768298045476,3.17921137,141.87,141.83,0.70367505]
[1768298045685,0.71883816,141.86,141.83,3.17921137]
[1768298046286,3.17921137,141.87,141.84,0.70367505]
[1768298046972,3.17921137,141.85,141.82,0.70367505]
[1768298047375,3.17921137,141.84,141.82,0.70367505]
[1768298047573,3.17921137,141.83,141.8,0.90367505]
[1768298047788,3.17921137,141.83,141.8,7.95581505]
[1768298048092,3.17921137,141.83,141.81,0.70367505]
[1768298048296,3.17921137,141.85,141.83,7.75430861]
[1768298050111,3.17921137,141.86,141.83,7.75430861]
[1768298050275,3.76784888,141.86,141.83,7.75430861]
[1768298051190,3.17921137,141.86,141.83,7.75430861]
[1768298051382,3.17921137,141.87,141.84,0.70367505]
[1768298053203,23.80760353,141.88,141.84,0.70367505]
[1768298053403,22.66522472,141.88,141.84,0.70367505]
[1768298054112,0.58863751,141.87,141.83,7.75430861]
[1768298054280,2.75567072,141.86,141.82,9.79153606]
[1768298054602,2.75567072,141.86,141.83,7.05061893]
[1768298057999,0.71883816,141.86,141.83,7.05061893]
[1768298058601,0.71883816,141.86,141.82,9.79161393]
[1768298059304,2.75567072,141.86,141.82,9.79161393]
[1768298059504,13.57689637,141.88,141.83,2.69877218]
[1768298059704,2.03683256,141.87,141.83,2.69877218]
[1768298059884,2.62869445,141.87,141.83,2.69877218]
[1768298060384,2.62869445,141.87,141.83,0.66193962]
[1768298060712,2.62869445,141.87,141.83,9.74902288]
[1768298062688,15.48869445,141.87,141.83,9.74902288]
[1768298063018,15.48869445,141.87,141.83,7.71219032]
[1768298063203,15.48869445,141.87,141.83,9.74902288]
[1768298063401,13.45186189,141.87,141.83,9.74902288]
[1768298063698,15.48869445,141.87,141.83,7.71219032]
[1768298064109,13.45186189,141.87,141.83,7.71219032]
[1768298064407,15.48869445,141.87,141.84,0.66193962]
[1768298065005,0.71689637,141.91,141.87,0.66193962]
[1768298065204,0.71689637,141.93,141.9,2.69877218]
[1768298065404,0.71689637,141.93,141.9,2.57877227]
[1768298065920,7.76264024,141.93,141.9,2.57877227]
[1768298067220,12.86,141.94,141.9,2.57877227]
[1768298067914,13.5706618,141.94,141.9,9.62594007]
[1768298068302,20.61600673,141.94,141.9,0.54193971]
[1768298068509,22.65283929,141.94,141.9,2.57877227]
[1768298069209,9.79283929,141.94,141.9,2.57877227]
[1768298070890,0.71683403,141.93,141.88,7.70976617]
[1768298071124,0.71072352,141.92,141.88,9.74659873]
[1768298071494,2.74755608,141.92,141.88,7.70976617]
[1768298072719,2.74755608,141.92,141.89,7.04770837]
[1768298073418,2.74755608,141.92,141.88,7.71000289]
[1768298073726,0.71084331,141.88,141.85,0.66193962]
[1768298074017,12.86,141.89,141.86,0.66193962]
[1768298074606,2.03683256,141.89,141.86,0.66193962]
[1768298075609,2.03683256,141.89,141.86,7.71105675]
[1768298076305,15.60749436,141.9,141.86,7.71105675]
[1768298077103,2.74749436,141.9,141.86,7.71105675]
[1768298078522,2.03683256,141.88,141.86,7.04911713]
[1768298079027,2.73657506,141.89,141.86,7.04911713]
[1768298080426,0.6997425,141.91,141.87,0.70485202]
[1768298080609,2.03683256,141.9,141.87,0.64485208]
[1768298081220,17.61234312,141.95,141.87,0.64485208]
[1768298081428,0.6997425,141.92,141.86,24.67212573]
[1768298081719,2.03683256,141.91,141.86,26.70895829]
[1768298082022,13.5597425,141.92,141.86,24.67212573]
[1768298082224,2.03683256,141.91,141.86,26.70895829]
[1768298082522,2.03683256,141.91,141.87,0.70485202]
[1768298083820,13.5597425,141.92,141.87,0.70485202]
[1768298084125,2.03683256,141.9,141.87,0.70485202]
[1768298085824,2.73657506,141.9,141.87,7.753103]
[1768298086127,2.03683256,141.91,141.87,5.65351446]
[1768298086718,2.03683256,141.9,141.87,5.65351446]
[1768298087026,19.90632873,141.92,141.87,5.65351446]
[1768298087326,2.03683256,141.91,141.87,5.65351446]
[1768298091232,2.03683256,141.91,141.88,0.70485202]
[1768298093333,2.03683256,141.9,141.88,0.70485202]
[1768298094832,21.94316129,141.92,141.86,0.70485202]
[1768298094833,2.03683256,141.89,141.86,0.70485202]
[1768298095139,2.03683256,141.88,141.86,0.70485202]
[1768298096112,2.00683256,141.88,141.86,0.70485202]
[1768298100334,2.03683256,141.87,141.86,0.70485202]
[1768298100528,2.03683256,141.87,141.85,0.70485202]
[1768298100710,2.03683256,141.86,141.85,0.70485202]
[1768298101524,19.90783627,141.89,141.85,0.70485202]
[1768298101835,2.03683256,141.89,141.86,0.70485202]
[1768298104338,2.03683256,141.9,141.87,0.70485202]
[1768298107739,2.03683256,141.89,141.87,0.70485202]
[1768298108319,2.03683256,141.89,141.86,0.72152192]
[1768298109448,19.90691396,141.91,141.88,0.72152192]
[1768298109641,2.03683256,141.9,141.86,7.77053053]
[1768298110645,2.03683256,141.9,141.87,0.72152192]
[1768298110846,0.66825667,141.94,141.9,2.175]
[1768298111030,2.03683256,141.95,141.9,2.175]
[1768298111239,2.03683256,141.93,141.89,2.03683256]
[1768298111549,2.03683256,141.94,141.89,2.03683256]
[1768298111849,2.03683256,141.94,141.89,2.20019556]
[1768298112747,2.03683256,141.93,141.9,7.04721634]
[1768298113051,2.70508923,141.93,141.9,7.04721634]
[1768298113250,2.70508923,141.94,141.9,7.04721634]
[1768298113421,3.84786588,141.94,141.9,7.04721634]
[1768298116454,3.17960921,141.94,141.91,0.163363]
[1768298117054,3.17960921,141.94,141.9,7.04721634]
[1768298117241,3.89819729,141.94,141.9,7.21057934]
[1768298117643,3.89819729,141.94,141.9,10.39018855]
[1768298118137,3.89819729,141.94,141.89,10.22720593]
[1768298118138,3.17960921,141.93,141.89,10.22720593]
[1768298118339,3.17960921,141.9,141.86,0.163363]
[1768298118652,3.17960921,141.89,141.86,0.163363]
[1768298118855,3.17960921,141.9,141.86,3.34297221]
[1768298119350,3.17960921,141.9,141.86,10.39217012]
[1768298119953,3.89819729,141.91,141.87,3.34297221]
[1768298120453,16.75819729,141.92,141.88,3.34297221]
[1768298121757,16.75819729,141.92,141.88,10.39106978]
[1768298124159,3.89819729,141.9,141.86,7.2125002]
[1768298125558,3.89819729,141.9,141.86,10.39210941]
[1768298126756,0.71858808,141.88,141.85,7.04954364]
[1768298127554,3.89819729,141.87,141.82,0.163363]
[1768298127859,3.89819729,141.86,141.82,0.163363]
[1768298128451,3.89819729,141.86,141.82,7.21448484]
[1768298129164,3.89819729,141.86,141.8,0.2]
[1768298129165,7.049251,141.86,141.8,0.2]
[1768298129668,3.17960921,141.84,141.82,1.393]
[1768298129840,3.17960921,141.84,141.8,0.2]
[1768298130739,3.17960921,141.81,141.8,0.2]
[1768298131469,3.17960921,141.82,141.8,0.2]
[1768298131767,7.05072807,141.83,141.8,0.2]
[1768298131950,3.17960921,141.82,141.8,0.2]
[1768298132933,7.05035132,141.84,141.8,0.2]
[1768298133150,3.17960921,141.81,141.8,1e-08]
[1768298133357,3.17960921,141.81,141.76,0.68252672]
[1768298133553,3.17960921,141.81,141.75,0.2]
[1768298133554,3.17960921,141.77,141.75,0.2]
[1768298135371,7.05395496,141.77,141.73,0.2]
[1768298135569,3.17960921,141.76,141.73,0.2]
[1768298135947,3.17960921,141.75,141.73,0.2]
[1768298136168,3.17960921,141.76,141.73,0.2]
[1768298136372,12.86,141.77,141.73,4.06602345]
[1768298137171,12.86,141.77,141.74,0.88641424]
[1768298137558,12.86,141.77,141.75,0.68641424]
[1768298137871,12.86,141.77,141.74,10.43467527]
[1768298137872,7.05069449,141.83,141.77,0.68641424]
[1768298138059,23.0903037,141.83,141.78,3.86602345]
[1768298138658,10.2303037,141.83,141.79,3.86602345]
[1768298138968,17.6221181,141.87,141.81,3.86602345]
[1768298139168,16.03960921,141.86,141.81,3.86602345]
[1768298139467,16.03960921,141.86,141.82,0.68641424]
[1768298139971,23.08881265,141.86,141.82,0.68641424]
[1768298140354,23.08881265,141.86,141.82,3.86602345]
[1768298140554,23.08881265,141.86,141.82,0.68641424]
[1768298140871,10.22881265,141.86,141.83,0.68641424]
[1768298141044,35.22867762,141.93,141.85,3.17960921]
[1768298141243,35.22867762,141.93,141.84,0.68641424]
[1768298141244,3.17960921,141.91,141.87,0.68641424]
[1768298141443,16.03960921,141.91,141.87,3.80602345]
[1768298141858,23.08638149,141.91,141.87,0.62641424]
[1768298142056,10.22638149,141.91,141.87,3.80602345]
[1768298142244,10.22638149,141.91,141.87,0.62641424]
[1768298142856,10.28638149,141.91,141.86,3.17960921]
[1768298143374,0.06,141.9,141.86,3.17960921]
[1768298144468,10.22638149,141.91,141.87,3.17960921]
[1768298144870,10.28638149,141.91,141.87,3.17960921]
[1768298145069,7.10677228,141.91,141.87,3.17960921]
[1768298145269,10.28638149,141.91,141.86,3.86602345]
[1768298146478,10.22638149,141.91,141.87,0.68641424]
[1768298147383,7.04677228,141.91,141.87,0.68641424]
[1768298147584,10.22638149,141.91,141.87,0.68641424]
[1768298147763,19.90677228,141.91,141.87,0.68641424]
[1768298147963,23.08638149,141.91,141.87,0.68641424]
[1768298148283,12.86,141.91,141.89,0.68641424]
[1768298149071,12.86,141.91,141.87,3.86602345]
[1768298149287,19.90674087,141.91,141.87,3.86602345]
[1768298149596,19.90674087,141.91,141.84,20.80430268]
[1768298149597,3.23960921,141.89,141.84,0.68641424]
[1768298149758,3.23960921,141.89,141.84,3.86602345]
[1768298149958,10.28759236,141.89,141.85,3.17960921]
[1768298150669,10.22759236,141.89,141.86,0.68641424]
[1768298151182,3.17960921,141.88,141.83,3.17960921]
[1768298151364,28.56995798,141.89,141.84,3.17960921]
[1768298152070,10.22682555,141.9,141.85,3.17960921]
[1768298153078,17.61299934,141.95,141.9,0.68641424]
[1768298153283,17.61299934,141.95,141.91,9.54180192]
[1768298153669,26.46838702,141.95,141.91,9.54180192]
[1768298154180,26.46838702,141.95,141.91,0.68641424]
[1768298154379,7.04523037,141.94,141.91,0.68641424]
[1768298155681,7.04523037,141.94,141.91,9.48180192]
[1768298156184,7.04523037,141.94,141.91,0.62641424]
[1768298160085,24.6577334,141.95,141.9,0.68641424]
[1768298160289,8.85538768,141.93,141.9,0.68641424]
[1768298160471,9.03688552,141.91,141.86,0.68641424]
[1768298160670,8.85538768,141.88,141.86,0.68641424]
[1768298160893,12.86,141.9,141.86,0.68641424]
[1768298161182,8.85538768,141.88,141.86,0.68641424]
[1768298161393,8.85538768,141.88,141.84,0.68641424]
[1768298162493,16.61606524,141.88,141.84,0.68641424]
[1768298162996,0.19211453,141.87,141.82,9.54180192]
[1768298163172,9.04750221,141.87,141.82,16.59295048]
[1768298163578,8.85538768,141.86,141.82,7.7375628]
[1768298163975,8.85538768,141.85,141.8,16.59382905]
[1768298164183,15.90512102,141.85,141.8,7.73844137]
[1768298164585,15.87512103,141.85,141.8,16.59382905]
[1768298164792,8.85538768,141.84,141.8,7.73844137]
[1768298165287,8.85538768,141.84,141.8,0.68641424]
[1768298165491,9.54183625,141.84,141.8,0.68641424]
[1768298166286,16.59234421,141.84,141.8,0.68641424]
[1768298166492,9.54183625,141.84,141.8,0.68641424]
[1768298166692,8.85538768,141.84,141.8,7.73856829]
[1768298166893,15.90559347,141.84,141.8,7.73856829]
[1768298167100,18.3105578,141.86,141.8,7.73856829]
[1768298167101,7.04981949,141.85,141.81,0.68802552]
[1768298167295,15.90520717,141.85,141.81,0.68802552]
[1768298169213,15.90520717,141.85,141.82,0.68802552]
[1768298169394,7.04981949,141.85,141.82,0.68802552]
[1768298173409,0.21776601,141.88,141.84,0.68802552]
[1768298173596,16.12104446,141.89,141.84,8.85538768]
[1768298173784,0.68176174,141.88,141.84,8.85538768]
[1768298174206,9.53714942,141.88,141.84,8.85538768]
[1768298174405,9.53714942,141.88,141.84,9.5434132]
[1768298174586,9.53714942,141.88,141.84,16.5936035]
[1768298175001,9.53714942,141.88,141.84,7.73821582]
[1768298175418,2.71351491,141.86,141.81,15.59895305]
[1768298175629,2.71351491,141.86,141.81,22.65033853]
[1768298176003,2.71351491,141.86,141.81,9.79033853]
[1768298176205,2.71351491,141.86,141.82,0.70238661]
[1768298176817,2.71351491,141.86,141.82,7.75357579]
[1768298178732,2.03656644,141.86,141.83,0.70238661]
[1768298179330,9.08578848,141.86,141.83,0.70238661]
[1768298180817,2.03656644,141.87,141.84,0.70238661]
[1768298183049,9.0850964,141.88,141.84,0.70238661]
[1768298184044,2.03656644,141.87,141.84,0.70238661]
[1768298184249,2.03656644,141.85,141.81,0.70238661]
[1768298184425,2.03656644,141.83,141.81,0.70238661]
[1768298184625,2.00656645,141.83,141.81,0.70238661]
[1768298184934,2.03656644,141.84,141.81,0.70238661]
[1768298185659,2.03656644,141.85,141.81,0.70238661]
[1768298186231,9.0865239,141.85,141.81,0.70238661]
[1768298189353,25.34813355,141.87,141.81,0.70238661]
[1768298189554,2.03656644,141.85,141.81,0.70238661]